Cogmind - Beta 13 @@@ ROGUE MODE // 2024.04.28 @ 16:53:42 Player: ThemBee Result: Self-destructed Performance ------------- Evolutions (4) 2000 Regions Visited (14) 2800 Robots Destroyed (155) 775 Value Destroyed (7162) 7162 Prototype IDs (34) 680 Alien Tech Used (0) 0 Bonus (3958) 3958 TOTAL SCORE: 17375 Bonus ------- High Alert Combat Kills 747 Follower Combat Kills 111 Entered Garrisons 800 Used RIF Installer 2000 Aligned with FarCom 300 Cogmind --------- Core Integrity 758/850 Matter 77/300 Energy 100/100 System Corruption 8% Temperature Warm (162) Movement Core (300) Ox5 Location -6/Waste Parts ------- > --- POWER (1) -------- (None) > --- PROPULSION (5) --- (None) > --- UTILITY (6) ------ Improved Heat Sink Improved Heavy Armor Plating Hacking Suite Relay Coupler [NC] (2) > --- WEAPON (3) ------- (None) > --- INVENTORY (5) ---- Hardened Medium Armor Plating Improved Light Armor Plating Relay Coupler [Hunter] (16) Remote Datajack Makeshift Spear Peak State ------------ > --- POWER ------------ Improved Deuterium Engine > --- PROPULSION ------- Armored Treads Medium Treads Medium Treads Medium Treads Improved Medium Treads > --- UTILITY ---------- Huge Storage Unit Improved Heavy Armor Plating Hacking Suite Relay Coupler [Behemoth] Long-range Tractor Beam > --- WEAPON ----------- Heavy Machine Gun Advanced Assault Cannon Advanced Assault Cannon > --- INVENTORY -------- Improved Deuterium Engine Light Treads Light Treads Cryofiber Web Coolant Injector Hardened Medium Armor Plating Improved Light Armor Plating Relay Coupler [NC] Relay Coupler [Swarmer] Relay Coupler [Swarmer] Relay Coupler [Grunt] Relay Coupler [Grunt] Relay Coupler [Brawler] Relay Coupler [Duelist] Relay Coupler [Sentry] Relay Coupler [Sentry] Relay Coupler [Specialist] Relay Coupler [Hunter] Trap Reconfigurator Heavy Plasma Cannon Long-range Missile Launcher Improved Datajack Remote Datajack Makeshift Spear [Rating: 68] Favorites ----------- Power Neutrino Core Engine Deuterium Engine Power Core Neutrino Core Propulsion Light Treads Treads Light Treads Wheel Wheel Utility Huge Storage Unit Device Advanced Heat Sink Storage Huge Storage Unit Processor Enhanced Optical Array Hackware Hacking Suite Protection Hardened Light Armor Plating Weapon Advanced Assault Cannon Energy Gun Advanced Beam Rifle Energy Cannon Heavy Plasma Cannon Ballistic Gun Minigun Ballistic Cannon Advanced Assault Cannon Launcher Long-range Missile Launcher Special Weapon Remote Datajack Piercing Weapon Makeshift Spear Special Melee Weapon Improved Datajack Build | -11 -10 -10 -10 -9 -8 -8 -8 -8 -7 -7 -7 -7 -6 -6 ------- Run | Yrd Mat Min Exi Min Mat Gar Mat Gar Fac Gar Fac Gar Fac Was Slots Evolved 8 | . . . . . 4 . . . 2 . . . 2 . Power . | . . . . . . . . . . . . . . . Propulsion 3 | . . . . . 1 . . . 2 . . . . . Utility 4 | . . . . . 2 . . . . . . . 2 . Weapon 1 | . . . . . 1 . . . . . . . . . Parts Attached 174 | 6 5 . . 2 17 13 4 18 12 13 14 12 52 6 Power 10 | 1 1 . . . 1 1 1 . 1 1 . 2 1 . Engine 6 | 1 1 . . . 1 . . . 1 . . 1 1 . Core 4 | . . . . . . 1 1 . . 1 . 1 . . Reactor . | . . . . . . . . . . . . . . . Propulsion 37 | 2 . . . . 3 4 . 4 5 1 4 2 12 . Treads 34 | . . . . . 3 4 . 4 5 1 3 2 12 . Leg . | . . . . . . . . . . . . . . . Wheel 3 | 2 . . . . . . . . . . 1 . . . Hover . | . . . . . . . . . . . . . . . Flight . | . . . . . . . . . . . . . . . Utility 59 | 1 2 . . 2 5 6 1 4 4 8 2 4 19 1 Device 28 | . 1 . . 1 3 3 . 3 2 4 . 3 7 1 Storage 3 | 1 1 . . . 1 . . . . . . . . . Processor 2 | . . . . 1 . . . . . . . . 1 . Hackware 9 | . . . . . . . 1 . 1 . 1 1 5 . Protection 17 | . . . . . 1 3 . 1 1 4 1 . 6 . Artifact . | . . . . . . . . . . . . . . . Weapon 68 | 2 2 . . . 8 2 2 10 2 3 8 4 20 5 Energy Gun 2 | . . . . . 1 . . . 1 . . . . . Energy Cannon 2 | . . . . . . . . . . . . . 1 1 Ballistic Gun 18 | 2 2 . . . 5 1 . 3 . 1 . 2 2 . Ballistic Cannon 17 | . . . . . . 1 1 1 . 2 4 1 5 2 Launcher 5 | . . . . . . . . 2 . . . 1 1 1 Special Weapon 3 | . . . . . . . . . . . . . 2 1 Impact Weapon . | . . . . . . . . . . . . . . . Slashing Weapon . | . . . . . . . . . . . . . . . Piercing Weapon 11 | . . . . . 2 . . 4 . . 2 . 3 . Special Melee Weapon 10 | . . . . . . . 1 . 1 . 2 . 6 . Unidentified Prototypes 1 | . . . . . 1 . . . . . . . . . Parts Lost 31 | . . . . . . 7 1 1 . 6 3 8 . 5 Power 6 | . . . . . . 1 1 . . 1 1 1 . 1 Propulsion 12 | . . . . . . 3 . . . 1 2 4 . 2 Utility 6 | . . . . . . 1 . 1 . 2 . 1 . 1 Weapon 7 | . . . . . . 2 . . . 2 . 2 . 1 Highest Loss Streak 5 | . . . . . . 5 1 1 . 5 1 4 . 5 To Critical Strikes . | . . . . . . . . . . . . . . . Average Slot Usage (%) 96 | . 98 100 100 100 97 99 99 99 99 93 98 86 94 88 Engine 4 | . 14 14 14 14 9 7 . . . 1 . 6 1 6 Core 3 | . . . . . . 1 8 9 5 5 6 . 4 . Treads 24 | . . . . . 15 26 27 27 38 32 31 23 31 30 Wheel 4 | . 28 28 28 28 10 . . . . . 4 3 . . Device 11 | . 12 14 14 11 18 15 9 9 8 10 9 12 8 3 Storage 8 | . 14 14 14 14 9 9 9 9 7 7 7 7 6 5 Hackware 6 | . . . . . . . 2 9 10 7 2 7 12 16 Protection 6 | . . . . . 8 11 15 7 3 3 9 . 5 6 Energy Gun 2 | . . . . . 4 9 4 . 2 7 . . . . Ballistic Gun 12 | . 28 28 28 28 21 15 9 17 15 2 7 6 3 2 Ballistic Cannon 7 | . . . . . . 1 13 5 . 12 11 15 11 6 Naked Turns . | . . . . . . . . . . . . . . . Heaviest Build 130 | 12 32 32 32 32 107 108 112 107 102 107 111 112 130 125 Greatest Support 136 | 26 26 26 26 26 60 63 63 63 105 105 102 82 136 136 Greatest Overweight (x) 2 | . 1 1 1 1 1 1 1 1 . 1 1 2 1 . Average Overweight (x) . | . . 1 1 1 . 1 1 1 . . . 1 . . Largest Inventory Capacity 25 | 8 15 15 15 15 25 25 25 25 25 25 25 25 25 25 Average Capacity 23 | 6 10 15 15 15 19 25 25 25 25 25 25 25 25 24 Most Carried 25 | 6 9 10 11 14 25 25 25 25 25 25 25 25 25 25 Average Carried 21 | 2 7 9 10 12 16 23 25 24 24 24 24 24 24 24 Final Capacity 25 | 8 15 15 15 15 25 25 25 25 25 25 25 25 25 5 Final Carried 25 | 6 9 10 11 14 25 25 25 25 25 24 25 23 25 5 Class Distribution -------------------- 23% | Botlord-Skirmisher 14% | Bothacker-Skirmisher 14% | Skirmisher 13% | Mutant 12% | Botlord-Mutant 7% | Bothacker-Mutant 5% | Tank 5% | Bothacker-Tank Dominant Class ---------------- Mutant | -10/Materials Mutant | -10/Mines Mutant | -10/Exiles Mutant | -9/Mines Skirmisher | -8/Materials Tank | -8/Garrison Bothacker-Tank | -8/Materials Bothacker-Skirmisher | -8/Garrison Bothacker-Mutant | -7/Factory Bothacker-Skirmisher | -7/Garrison Bothacker-Skirmisher | -7/Factory Botlord-Skirmisher | -7/Garrison Botlord-Skirmisher | -6/Factory Botlord-Skirmisher | -6/Waste Resources | -11 -10 -10 -10 -9 -8 -8 -8 -8 -7 -7 -7 -7 -6 -6 ----------- Run | Yrd Mat Min Exi Min Mat Gar Mat Gar Fac Gar Fac Gar Fac Was Matter Collected 5559 | 169 135 76 . 20 414 688 409 548 232 250 444 604 1509 61 Remotely 1539 | . . . . . . . . 31 . 161 . 604 743 . Salvage Created 6231 | . 135 50 . . 281 1112 476 534 357 266 467 468 1264 821 Parts 289 | . 8 5 . . 23 54 19 32 18 14 21 28 61 6 Haulers Intercepted 5 | . . . . . 1 . 1 . . . . . 3 . Recyclers Shooed 3 | . . . . . 1 . . . . . 1 . 1 . Parts Field Recycled . | . . . . . . . . . . . . . . . Retrieved Matter . | . . . . . . . . . . . . . . . Parts Self-Destructed . | . . . . . . . . . . . . . . . Prevented . | . . . . . . . . . . . . . . . Kills | -11 -10 -10 -10 -9 -8 -8 -8 -8 -7 -7 -7 -7 -6 -6 ------- Run | Yrd Mat Min Exi Min Mat Gar Mat Gar Fac Gar Fac Gar Fac Was Combat Hostiles Destroyed 140 | . 2 3 . . 6 27 13 17 6 11 9 16 27 3 Melee 2 | . . . . . . . . 1 . . . . 1 . Guns 70 | . 2 3 . . 6 23 3 10 6 5 1 7 3 1 Cannons 54 | . . . . . . 4 10 3 . 6 8 4 19 . AOE 12 | . . . . . . . . 3 . . . 5 3 1 Classes Destroyed 14 | . 2 1 . . 2 1 2 . . . 2 1 2 1 Worker 4 | . . . . . . . . . . . 1 . 3 . Hauler 5 | . . . . . 1 . 1 . . . . . 3 . Recycler 2 | . . . . . . . . . . . 2 . . . Operator 1 | . . . . . . . . . . . . . 1 . Watcher 3 | . 1 . . . 1 . . . . . . . 1 . Swarmer 36 | . . 3 . . 3 6 2 8 . 6 . 5 3 . Grunt 55 | . 2 . . . . 16 6 6 2 5 1 6 11 . Brawler 3 | . . . . . . . 1 . 1 . . . 1 . Duelist 1 | . . . . . . . . . . . . 1 . . Sentry 26 | . . . . . 3 4 3 3 3 . 4 3 3 . Hunter 5 | . . . . . . . 1 . . . 2 . 2 . Programmer 10 | . . . . . . 1 . . . . 2 1 6 . Behemoth 1 | . . . . . . . . . . . . . 1 . Compactor 3 | . . . . . . . . . . . . . . 3 Best Kill Streak 7 | . 2 3 . . 4 6 4 5 5 7 4 7 4 2 Combat Bots Only 7 | . 2 3 . . 3 6 4 5 5 7 2 7 4 2 Max Kills in Single Turn 3 | . 1 1 . . 1 2 1 2 1 1 2 3 2 1 Gunslinging 1 | . . . . . . 1 . . . . . . . . Exploded 3 | . . . . . . . . 2 . . . 3 2 1 Melee 1 | . . . . . . . . 1 . . . . 1 . Uniques/NPCs Destroyed . | . . . . . . . . . . . . . . . Combat | -11 -10 -10 -10 -9 -8 -8 -8 -8 -7 -7 -7 -7 -6 -6 -------- Run | Yrd Mat Min Exi Min Mat Gar Mat Gar Fac Gar Fac Gar Fac Was Hostile Shots Fired 920 | . 6 6 . 1 22 132 34 70 117 64 155 130 176 7 Missed 287 | . 3 1 . . 5 28 12 17 34 24 53 43 66 1 Damage Taken 8038 | . 59 42 . 18 210 1479 342 698 736 621 999 918 1564 352 Core 664 | . 37 9 . . 16 186 24 91 102 . 46 61 92 . Absorbed by Shields 70 | . . . . . . . . . . . . 70 . . Redirected to Shielding 9 | . . . . . . . . . . . . . 9 . Regen/Repaired (Parts) 652 | . . . . . . . . . . . 403 . 249 . Core Remaining (%) 73 | 100 . . . 81 . . . 42 . . . 70 . . Volleys Fired 367 | . 6 3 . . 23 78 30 34 14 22 30 32 73 22 Largest 3 | . 2 2 . . 3 3 3 3 3 3 3 3 3 3 Hottest 186 | . 46 46 . . 107 130 130 94 111 149 121 121 186 186 Shots Fired 951 | . 12 6 . . 69 204 82 80 42 64 83 78 189 42 Gun 557 | . 12 6 . . 69 186 41 59 42 36 27 23 52 4 Cannon 379 | . . . . . . 18 41 19 . 28 56 51 133 33 Launcher 8 | . . . . . . . . 2 . . . 4 1 1 Special 7 | . . . . . . . . . . . . . 3 4 Kinetic 805 | . 12 6 . . 66 139 71 78 28 43 83 74 179 26 Thermal 131 | . . . . . 3 65 11 . 14 21 . . 6 11 Explosive 8 | . . . . . . . . 2 . . . 4 1 1 Electromagnetic . | . . . . . . . . . . . . . . . Robot Hit Streak 21 | . 8 4 . . 18 19 9 8 17 8 21 7 9 11 Robot Miss Streak 8 | . 1 1 . . 3 8 3 3 2 3 2 5 4 3 Penetration Max 1 | . . . . . . . . . . . 1 1 . . Secondary Targets 12 | . . . . . 1 10 . . . 1 . . . . Max Gunslinging Chain 2 | . . . . . 1 2 . . . 1 . . . . Shots Hit Robots 642 | . 10 4 . . 36 125 61 47 34 39 71 39 145 31 Core Hits 318 | . 7 3 . . 13 55 47 25 16 28 19 36 63 6 Critical Kills 4 | . . . . . . . . . . . 1 1 1 1 Critical Parts Destroyed 3 | . . . . . . 1 1 . . . . 1 . . Critical Strikes 31 | . . . . . . 6 2 2 1 3 5 3 7 2 Burn 9 | . . . . . . 5 1 . 1 2 . . . . Meltdown 2 | . . . . . . . . . . . . . 1 1 Destroy 5 | . . . . . . 1 1 . . . 1 2 . . Blast 13 | . . . . . . . . . . 1 4 1 6 1 Impale 2 | . . . . . . . . 2 . . . . . . Melee Attacks 65 | . . . . . 5 . 3 19 1 . 13 . 24 . Impact . | . . . . . . . . . . . . . . . Slashing . | . . . . . . . . . . . . . . . Piercing 40 | . . . . . 5 . . 19 . . 6 . 10 . Sneak Attacks 21 | . . . . . . . 2 . . . 8 . 11 . Combat Hostiles . | . . . . . . . . . . . . . . . Follow-up Attacks . | . . . . . . . . . . . . . . . Damage Inflicted 14888 | . 135 59 . . 556 2405 1177 1107 618 836 1647 1542 3703 1103 Guns 7082 | . 135 59 . . 556 2165 441 578 618 429 567 524 922 88 Cannons 6401 | . . . . . . 240 736 116 . 407 1011 552 2542 797 Explosions 975 | . . . . . . . . 213 . . . 466 78 218 Melee 384 | . . . . . . . . 200 . . 50 . 134 . Ramming 46 | . . . . . . . . . . . 19 . 27 . Kinetic 11481 | . 135 59 . . 556 1575 1017 694 358 576 1578 1076 3289 568 Thermal 2002 | . . . . . . 830 160 . 260 260 . . 175 317 Explosive 975 | . . . . . . . . 213 . . . 466 78 218 Electromagnetic . | . . . . . . . . . . . . . . . Impact . | . . . . . . . . . . . . . . . Slashing . | . . . . . . . . . . . . . . . Piercing 384 | . . . . . . . . 200 . . 50 . 134 . Highest Corruption 8 | . . . . . . 1 1 1 . . . . . 8 Average Corruption 1 | . . . . . . 1 1 1 . . . . . 8 Corruption Purged . | . . . . . . . . . . . . . . . Corruption Blocked . | . . . . . . . . . . . . . . . Effects 18 | . . . . . . . 5 9 . . . . . 4 Message Errors 3 | . . . . . . . 1 2 . . . . . . Matter Fused 3 | . . . . . . . . 2 . . . . . 1 Heat Flow Errors 3 | . . . . . . . 2 1 . . . . . . Energy Discharges 3 | . . . . . . . 2 1 . . . . . . Parts Rejected 1 | . . . . . . . . . . . . . . 1 Data Loss (minor) 3 | . . . . . . . . 3 . . . . . . Misfires 1 | . . . . . . . . . . . . . . 1 Weapon Failures 1 | . . . . . . . . . . . . . . 1 Overload Shots . | . . . . . . . . . . . . . . . Overflow Damage 138 | . . . . . . . . 29 . . 15 53 41 . Projectiles 67 | . . . . . . . . . . . 15 11 41 . Explosions 43 | . . . . . . . . 1 . . . 42 . . Melee 28 | . . . . . . . . 28 . . . . . . Knockbacks 60 | . . . . . . 9 20 . . 10 5 1 15 . Impact 1 | . . . . . . . . . . . 1 . . . Kinetic 57 | . . . . . . 9 18 . . 10 4 1 15 . Secondary 2 | . . . . . . . 2 . . . . . . . Self-Inflicted Damage 78 | . . . . . . . . 7 . . . . . 71 Shots 2 | . . . . . . . . 1 . . . . . 1 Rammed 3 | . . . . . . . . . . . 2 . 1 . Targets Rammed 5 | . . . . . . . . . . . 3 . 2 . Kicked . | . . . . . . . . . . . . . . . Crushed 2 | . . . . . . . . . . . 1 . 1 . Highest Temperature 521 | . 27 12 . . 164 313 234 186 521 105 14 86 462 342 Average Temperature 105 | . 12 6 . . 35 122 45 23 247 34 6 33 139 151 Received Heat Transfer 2613 | . 21 . . 9 72 639 108 306 306 252 249 246 405 . Effects 18 | . . . . . . 2 . . 2 . . . 14 . Shutdowns 4 | . . . . . . . . . 2 . . . 2 . Energy Bleed 2 | . . . . . . 2 . . . . . . . . Interference 7 | . . . . . . . . . . . . . 7 . Short Circuit 1 | . . . . . . . . . . . . . 1 . Damage (minor) 2 | . . . . . . . . . . . . . 2 . Damage (major) 2 | . . . . . . . . . . . . . 2 . Siege Activations . | . . . . . . . . . . . . . . . Robots Corrupted . | . . . . . . . . . . . . . . . Combat Hostiles . | . . . . . . . . . . . . . . . Parts Fried . | . . . . . . . . . . . . . . . Impact Corruptions . | . . . . . . . . . . . . . . . Robots Melted 2 | . . . . . . . . . . . . . 1 1 Combat Hostiles 2 | . . . . . . . . . . . . . 1 1 Parts Melted 6 | . . . . . . 4 . . 1 1 . . . . Heat Transferred 4096 | . . . . . . 1792 370 . 555 629 . . 250 500 Parts Sabotaged . | . . . . . . . . . . . . . . . Parts Stolen . | . . . . . . . . . . . . . . . Parts Stripped . | . . . . . . . . . . . . . . . Power Chain Reactions . | . . . . . . . . . . . . . . . Alert | -11 -10 -10 -10 -9 -8 -8 -8 -8 -7 -7 -7 -7 -6 -6 ------- Run | Yrd Mat Min Exi Min Mat Gar Mat Gar Fac Gar Fac Gar Fac Was Peak Influence 1019 | . 131 70 . . 181 869 643 1019 680 826 515 657 549 194 Initial 534 | . . . . . . . 423 300 534 476 433 172 339 192 Average 296 | . 57 50 . . 53 425 478 601 568 680 363 432 183 182 Maximum Alert Level 3 | . . . . . . 3 2 3 2 3 2 2 2 . Low Security (%) 44 | 100 100 100 . 100 100 19 . . . . 5 9 60 100 Level 1 22 | . . . . . . 33 6 28 . . 43 36 30 . Level 2 26 | . . . . . . 27 93 38 100 59 51 54 8 . Level 3 7 | . . . . . . 20 . 33 . 40 . . . . Level 4 . | . . . . . . . . . . . . . . . Level 5 . | . . . . . . . . . . . . . . . High Security . | . . . . . . . . . . . . . . . Max Security . | . . . . . . . . . . . . . . . Squads Dispatched 29 | . 1 . . . 7 . 2 . 3 . 4 . 12 . Investigation 8 | . 1 . . . 1 . 1 . . . 1 . 4 . Extermination 5 | . . . . . . . . . . . . . 5 . Reinforcement 8 | . . . . . 3 . 1 . . . 1 . 3 . Assault . | . . . . . . . . . . . . . . . Garrison 8 | . . . . . 3 . . . 3 . 2 . . . Intercept . | . . . . . . . . . . . . . . . Searches Triggered . | . . . . . . . . . . . . . . . Construction Impeded . | . . . . . . . . . . . . . . . Haulers Reinforced 1 | . . . . . . . . . . . . . 1 . Active Scanning Responses . | . . . . . . . . . . . . . . . Cargo Convoy Interrupts . | . . . . . . . . . . . . . . . Stealth | -11 -10 -10 -10 -9 -8 -8 -8 -8 -7 -7 -7 -7 -6 -6 --------- Run | Yrd Mat Min Exi Min Mat Gar Mat Gar Fac Gar Fac Gar Fac Was Distress Signals 8 | . . . . . 2 . 4 . . . . . 2 . Communications Jammed . | . . . . . . . . . . . . . . . Distress Signals . | . . . . . . . . . . . . . . . Times Spotted 189 | . 4 3 . 3 7 30 18 24 7 11 17 17 43 5 Peak Tracking Total 9 | . 2 3 . 3 3 6 6 9 4 8 3 6 5 2 Tactical Retreats 8 | . . . . . . 3 . 1 . 1 1 1 1 . Traps | -11 -10 -10 -10 -9 -8 -8 -8 -8 -7 -7 -7 -7 -6 -6 ------- Run | Yrd Mat Min Exi Min Mat Gar Mat Gar Fac Gar Fac Gar Fac Was Traps Triggered 16 | . 2 . . . . 7 1 1 . . 1 3 1 . Indirectly . | . . . . . . . . . . . . . . . Trap Hack Attempts . | . . . . . . . . . . . . . . . Triggered . | . . . . . . . . . . . . . . . Disarmed . | . . . . . . . . . . . . . . . Reprogrammed . | . . . . . . . . . . . . . . . Reused 12 | . . . . . . 1 . . . . . 2 9 . Traps Reconfigurated 42 | . . . . . 4 8 . 3 2 4 3 3 15 . Traps Extracted . | . . . . . . . . . . . . . . . Installed . | . . . . . . . . . . . . . . . Triggered 16 | . . . . . . 1 . . . . . 2 13 . Machines | -11 -10 -10 -10 -9 -8 -8 -8 -8 -7 -7 -7 -7 -6 -6 ---------- Run | Yrd Mat Min Exi Min Mat Gar Mat Gar Fac Gar Fac Gar Fac Was Machines Disabled 9 | . . . . . 1 2 . 2 . 1 . 2 1 . Max in Single Turn 1 | . . . . . 1 1 . 1 . 1 . 1 1 . Garrison Relay 6 | . . . . . . 2 . 2 . 1 . 1 . . Machines Repaired . | . . . . . . . . . . . . . . . Machines Dismantled . | . . . . . . . . . . . . . . . Machines Sabotaged . | . . . . . . . . . . . . . . . Overloaded Fab Kills . | . . . . . . . . . . . . . . . Hacking | -11 -10 -10 -10 -9 -8 -8 -8 -8 -7 -7 -7 -7 -6 -6 --------- Run | Yrd Mat Min Exi Min Mat Gar Mat Gar Fac Gar Fac Gar Fac Was Machines Accessed 58 | . 7 . 4 . 9 2 4 4 1 2 4 3 18 . Terminals 35 | . 6 . . . 5 2 2 4 . 2 2 3 9 . Fabricators 2 | . . . . . . . . . . . . . 2 . Repair Stations 4 | . . . . . . . 1 . . . 1 . 2 . Recycling Units 6 | . 1 . . . 2 . . . . . . . 3 . Scanalyzers 3 | . . . . . 1 . . . . . . . 2 . Garrison Access 4 | . . . . . 1 . 1 . 1 . 1 . . . Total Hacks 166 | . 22 . 27 . 27 4 12 6 1 6 11 6 44 . Successful 103 | . 14 . 27 . 14 1 7 3 1 . 6 . 30 . Failed 62 | . 7 . . . 13 3 5 3 . 6 5 6 14 . Catastrophic 8 | . 1 . . . 1 1 . 1 . . 1 3 . . Database Lockouts 1 | . 1 . . . . . . . . . . . . . Manual 45 | . 12 . 1 . 10 . 9 . . . 2 . 11 . Terminals 90 | . 20 . . . 18 4 8 6 . 6 3 6 19 . Fabricators 6 | . . . . . . . . . . . . . 6 . Repair Stations 15 | . . . . . . . 3 . . . 7 . 5 . Recycling Units 13 | . 2 . . . 4 . . . . . . . 7 . Scanalyzers 9 | . . . . . 2 . . . . . . . 7 . Garrison Access 6 | . . . . . 3 . 1 . 1 . 1 . . . Terminal Hacks 59 | . 10 . 27 . 7 1 2 3 . . 1 . 8 . Record 26 | . . . 26 . . . . . . . . . . . Robot Analysis 2 | . 2 . . . . . . . . . . . . . Prototype ID Bank 5 | . 2 . . . 1 . . . . . . . 2 . Open DSF 1 | . . . . . . . . . . . . . 1 . Emergency Access Points 1 | . . . . . . . . 1 . . . . . . Terminal Index 2 | . 1 . . . . . . . . . . . 1 . Alert Level 1 | . . . . . 1 . . . . . . . . . Unreport Threat 3 | . 1 . . . . . 1 . . . 1 . . . Locate Traps 5 | . 1 . . . 1 . . . . . . . 3 . Dispatch Records 1 | . 1 . . . . . . . . . . . . . Hauler Manifests 4 | . 1 . . . 2 . 1 . . . . . . . Zone Layout 4 | . 1 . . . 2 . . . . . . . 1 . Patrol Navigation 2 | . . . . . . 1 . 1 . . . . . . Security Stations 1 | . . . . . . . . 1 . . . . . . Derelict Proto ID Bank 1 | . . . 1 . . . . . . . . . . . Fabricator Hacks 5 | . . . . . . . . . . . . . 5 . Network Status 1 | . . . . . . . . . . . . . 1 . Load Schematic 2 | . . . . . . . . . . . . . 2 . Build 2 | . . . . . . . . . . . . . 2 . Repair Station Hacks 8 | . . . . . . . 1 . . . 4 . 3 . Scan Component 5 | . . . . . . . 1 . . . 2 . 2 . Repair 3 | . . . . . . . . . . . 2 . 1 . Recycling Unit Hacks 8 | . 1 . . . 2 . . . . . . . 5 . Report Inventory 5 | . 1 . . . 2 . . . . . . . 2 . Retrieve Matter 1 | . . . . . . . . . . . . . 1 . Retrieve Components 2 | . . . . . . . . . . . . . 2 . Scanalyzer 7 | . . . . . 2 . . . . . . . 5 . Insert Component 3 | . . . . . 1 . . . . . . . 2 . Analyze 4 | . . . . . 1 . . . . . . . 3 . Garrison Access Hacks 4 | . . . . . 1 . 1 . 1 . 1 . . . Unlock Access 4 | . . . . . 1 . 1 . 1 . 1 . . . Unauthorized Hacks 12 | . 3 . . . 2 . 3 . . . . . 4 . Terminals 8 | . 2 . . . 1 . 2 . . . . . 3 . Assimilate 1 | . . . . . . . 1 . . . . . . . Botnet 7 | . 2 . . . 1 . 1 . . . . . 3 . Fabricators . | . . . . . . . . . . . . . . . Repair Stations 1 | . . . . . . . 1 . . . . . . . Mechanics 1 | . . . . . . . 1 . . . . . . . Recycling Units 3 | . 1 . . . 1 . . . . . . . 1 . Recyclers 3 | . 1 . . . 1 . . . . . . . 1 . Scanalyzers . | . . . . . . . . . . . . . . . Garrison Access . | . . . . . . . . . . . . . . . Data Cores Recovered 1 | . . . . . . . . . . . . . 1 . Used . | . . . . . . . . . . . . . . . Hacking Detections 41 | . 6 . . . 6 2 2 3 . 2 3 3 14 . Full Trace Events 8 | . . . . . . 1 1 1 . 2 . 1 2 . Feedback Events 1 | . . . . . . . . . . 1 . . . . Hackware Fried 1 | . . . . . . . . . . 1 . . . . Feedback Blocked . | . . . . . . . . . . . . . . . Robot Schematics Acquired . | . . . . . . . . . . . . . . . Robots Built . | . . . . . . . . . . . . . . . Authchips . | . . . . . . . . . . . . . . . Time . | . . . . . . . . . . . . . . . Total Robot Build Rating . | . . . . . . . . . . . . . . . Part Schematics Acquired 3 | . . . . . 1 . . . . . . . 2 . Parts Built 4 | . . . . . . . . . . . . . 4 . Authchips . | . . . . . . . . . . . . . . . Time 137 | . . . . . . . . . . . . . 137 . Total Part Build Rating 18 | . . . . . . . . . . . . . 18 . Parts Repaired 3 | . . . . . . . . . . . 2 . 1 . Time 114 | . . . . . . . . . . . 76 . 38 . Parts Recycled . | . . . . . . . . . . . . . . . Recycled Matter . | . . . . . . . . . . . . . . . Retrieved Matter . | . . . . . . . . . . . . . . . Retrieved Components 14 | . . . . . . . . . . . . . 14 . Parts Scanalyzed 3 | . . . . . 1 . . . . . . . 2 . Part Schematics Acquired 3 | . . . . . 1 . . . . . . . 2 . Parts Damaged . | . . . . . . . . . . . . . . . Bothacking | -11 -10 -10 -10 -9 -8 -8 -8 -8 -7 -7 -7 -7 -6 -6 ------------ Run | Yrd Mat Min Exi Min Mat Gar Mat Gar Fac Gar Fac Gar Fac Was Used RIF Installer 4 | . . . . . . 1 . 1 . 1 . 1 . . Command Fork 1 | . . . . . . . . . . . . 1 . . Zone Cloak 1 | . . . . . . . . 1 . . . . . . Program Shield 1 | . . . . . . . . . . 1 . . . . Robots Hacked 20 | . . . . . . . 2 . 1 . 4 . 9 4 Non-combat 13 | . . . . . . . 2 . . . 4 . 7 . Combat 7 | . . . . . . . . . 1 . . . 2 4 Robot Hacks Applied 29 | . . . . . . . 2 . 1 . 6 . 16 4 parse_system 7 | . . . . . . . 1 . . . 2 . 3 1 no_distress 5 | . . . . . . . 1 . . . 2 . 2 . find_chute 1 | . . . . . . . . . . . . . 1 . map_walls 1 | . . . . . . . . . . . . . 1 . drop_inventory 2 | . . . . . . . . . . . . . 2 . find_recycling 1 | . . . . . . . . . . . 1 . . . purge_threat 5 | . . . . . . . . . . . 1 . 4 . ignore_targets 1 | . . . . . . . . . . . . . . 1 overload_power 2 | . . . . . . . . . . . . . . 2 amplify_resonance 1 | . . . . . . . . . . . . . 1 . disable_weapons 1 | . . . . . . . . . . . . . 1 . formatsys_high 2 | . . . . . . . . . 1 . . . 1 . Relay Couplers Released 31 | . . . . . . 11 . 9 . 3 4 4 . . Machine Destruction 24 | . . . . . . 8 . 9 . 3 . 4 . . Programmers 7 | . . . . . . 3 . . . . 4 . . . Attached 7 | . . . . . . . . . 1 . 1 1 4 . Fabnet Peak Effective % . | . . . . . . . . . . . . . . . Robots Rewired . | . . . . . . . . . . . . . . . Allies Hacked . | . . . . . . . . . . . . . . . Hacks Repelled . | . . . . . . . . . . . . . . . Allies | -11 -10 -10 -10 -9 -8 -8 -8 -8 -7 -7 -7 -7 -6 -6 -------- Run | Yrd Mat Min Exi Min Mat Gar Mat Gar Fac Gar Fac Gar Fac Was Total Allies 5 | . . . . . . . . 2 1 . . . 1 1 Largest Group 2 | . . . . . . . . 2 1 . . . 1 1 Highest-Rated Group 56 | . . . . . . . . 56 32 . . . 19 31 Highest-Rated Ally 32 | . . . . . . . . 31 32 . . . 19 31 Total Orders . | . . . . . . . . . . . . . . . Ally Attacks 31 | . . . . . . . . 9 1 . . . . 21 Total Damage 595 | . . . . . . . . 206 27 . . . . 362 Kills 5 | . . . . . . . . 5 . . . . . . Allies Corrupted . | . . . . . . . . . . . . . . . Allies Melted . | . . . . . . . . . . . . . . . Intel | -11 -10 -10 -10 -9 -8 -8 -8 -8 -7 -7 -7 -7 -6 -6 ------- Run | Yrd Mat Min Exi Min Mat Gar Mat Gar Fac Gar Fac Gar Fac Was Robot Analysis Total 2 | . 2 . . . . . . . . . . . . . Derelict Logs Recovered 3 | . . 1 . 2 . . . . . . . . . . Drone Launches . | . . . . . . . . . . . . . . . Drone Recoveries . | . . . . . . . . . . . . . . . Exploration | -11 -10 -10 -10 -9 -8 -8 -8 -8 -7 -7 -7 -7 -6 -6 ------------- Run | Yrd Mat Min Exi Min Mat Gar Mat Gar Fac Gar Fac Gar Fac Was Turns Passed 13180 | 45 415 289 324 544 1344 1638 762 1175 292 516 783 822 4126 105 Spaces Moved 5766 | 34 391 260 308 490 740 519 236 397 122 201 268 246 1532 22 Core 4 | 4 . . . . . . . . . . . . . . Treads 3785 | . . . . . 242 519 236 397 122 201 268 246 1532 22 Legs . | . . . . . . . . . . . . . . . Wheels 1977 | 30 391 260 308 490 498 . . . . . . . . . Hover . | . . . . . . . . . . . . . . . Flight . | . . . . . . . . . . . . . . . Fastest Speed 50 | 50 90 105 105 105 105 240 240 240 159 159 159 238 162 162 Average Speed 182 | 89 94 105 105 105 148 240 240 240 159 208 193 270 216 162 Slowest Speed 317 | 100 105 105 105 105 240 240 240 240 159 239 238 317 243 162 Overloaded Moves . | . . . . . . . . . . . . . . . Propulsion Burnouts . | . . . . . . . . . . . . . . . Robots Hopped . | . . . . . . . . . . . . . . . Cave-ins Triggered . | . . . . . . . . . . . . . . . Exploration Rate (%) 39 | 3 61 49 61 78 64 58 22 53 4 36 7 30 38 27 Regions Visited 14 Branch Regions 3 Pre-discovered Areas 1 | . . . . 1 . . . . . . . . . . Known Exits Taken 5 | . . . . 1 1 . 1 . 1 . 1 . . . Unknown Exits Taken 4 | 1 1 1 1 . . . . . . . . . . . Scrap Searched 5 | . . 1 . 4 . . . . . . . . . . Spaces Dug 20 | . . . . . 5 . . . . . 3 . 12 . Terrain Destroyed 85 | . . . . . 5 . 2 9 . . 14 13 28 14 Melee 10 | . . . . . 5 . . . . . 3 . 2 . Projectile 31 | . . . . . . . 2 . . . 11 . 16 2 AOE 44 | . . . . . . . . 9 . . . 13 10 12 Terrain Rammed . | . . . . . . . . . . . . . . . Walls Destroyed . | . . . . . . . . . . . . . . . Machines Disabled . | . . . . . . . . . . . . . . . Actions | -11 -10 -10 -10 -9 -8 -8 -8 -8 -7 -7 -7 -7 -6 -6 --------- Run | Yrd Mat Min Exi Min Mat Gar Mat Gar Fac Gar Fac Gar Fac Was Total 7672 | 45 429 271 308 518 944 779 370 548 193 249 453 339 2173 53 Wait 1113 | . 14 8 . 24 126 139 96 51 35 7 118 43 450 2 Move 5755 | 33 390 259 307 489 739 517 236 396 122 200 268 245 1532 22 Hop . | . . . . . . . . . . . . . . . Pick Up 101 | 6 7 1 1 3 22 13 . 14 3 5 4 4 17 1 Fast Attach 29 | 6 1 . . . 2 1 2 . 1 2 4 2 8 . Attach 32 | . . . . . 6 7 . 1 3 4 . 4 5 2 Detach 4 | . . . . . . . . . 1 . . . 3 . Swap 113 | . 4 . . 2 9 5 2 17 8 7 10 6 39 4 Drop 74 | . 7 . . . 12 9 1 14 5 2 3 1 20 . Fire 367 | . 6 3 . . 23 78 30 34 14 22 30 32 73 22 Melee 65 | . . . . . 5 . 3 19 1 . 13 . 24 . Ram . | . . . . . . . . . . . . . . . Kick . | . . . . . . . . . . . . . . . Crush 5 | . . . . . . . . . . . 3 . 2 . Escape Stasis 14 | . . . . . . 10 . 2 . . . 2 . . Rewire . | . . . . . . . . . . . . . . . Trap . | . . . . . . . . . . . . . . . Miscellaneous . | . . . . . . . . . . . . . . . Route ------- -11/Scrapyard -10/Materials (discovered 3 exits: [*Mat x2] / [*Min]) -10/Mines -10/Exiles -9/Mines (discovered 2 exits: *Mat x2) -8/Materials (discovered 2 exits: Fac / Gar) -8/Garrison (discovered 2 exits: *Mat x2) -8/Materials (discovered 2 exits: *Fac / Gar) -8/Garrison -7/Factory -7/Garrison -7/Factory -7/Garrison -6/Factory (discovered 3 exits: [*Fac] / [*Low] / [*Ext]) -6/Waste History --------- Turn | Location | Event 18 | -11/Scrapyard | Discovered new exit (range 16) 46 | -11/Scrapyard | Entered Materials 182 | -10/Materials | Central database locked down 210 | -10/Materials | Discovered new exit (range 4) 278 | -10/Materials | Discovered new exit (range 16) 300 | -10/Materials | Build established: Mutant 436 | -10/Materials | Discovered new exit (range 10) 461 | -10/Materials | Entered Mines 501 | -10/Mines | A weapon hastily lodged in a ceiling crevice suddenly fell to the ground 648 | -10/Mines | Deemed a non-threat by the Exiles lab entrance 649 | -10/Mines | Discovered new exit (range 5) 701 | -10/Mines | Learned Materials security intel 719 | -10/Mines | Assembled infested the area 750 | -10/Mines | Entered Exiles 776 | -10/Exiles | Met 8R-AWN 794 | -10/Exiles | Met EX-HEX 826 | -10/Exiles | Met EX-BIN 839 | -10/Exiles | Aligned with FarCom system 840 | -10/Exiles | Given EX-Vault access code 883 | -10/Exiles | Opened EX-Vault 928 | -10/Exiles | Warned to stay clear of 0b10 Research branches 974 | -10/Exiles | Found Trap Reconfigurator 1027 | -10/Exiles | Met EX-DEC 1063 | -10/Exiles | Discovered new exit (range 12) 1074 | -10/Exiles | Left Exiles lab with Trap Reconfigurator 1074 | -10/Exiles | Entered Mines 1210 | -9/Mines | Discovered new exit (range 13) 1251 | -9/Mines | Learned location of Zion (-6) 1300 | -9/Mines | Received a Rocket Launcher from a helpful Derelict 1509 | -9/Mines | Learned 2 Materials zone layouts 1522 | -9/Mines | Discovered new exit (range 8) 1535 | -9/Mines | Identified exit to Materials 1618 | -9/Mines | Entered Materials 1618 | -8/Materials | Evolved 4 slots: Propulsion x1, Utility x2, Weapon x1 1619 | -8/Materials | Identified exit to Factory 1705 | -8/Materials | Garrison activated, responded to threat 1977 | -8/Materials | Build established: Skirmisher 2281 | -8/Materials | Met 7R-MNS 2955 | -8/Materials | Identified exit to Garrison 2962 | -8/Materials | Entered Garrison 2992 | -8/Garrison | Triggered checkpoint 3107 | -8/Garrison | Garrison Relay disabled 3358 | -8/Garrison | Triggered checkpoint 3538 | -8/Garrison | Triggered checkpoint 3678 | -8/Garrison | Discovered new exit (range 15) 3806 | -8/Garrison | Triggered checkpoint 3907 | -8/Garrison | Build established: Tank 4213 | -8/Garrison | Discovered new exit (range 11) 4319 | -8/Garrison | Lost 5 parts (1p3n1w) 4412 | -8/Garrison | Installed Relay Interface Framework 4458 | -8/Garrison | Triggered checkpoint 4485 | -8/Garrison | Garrison Relay disabled 4600 | -8/Garrison | Entered Materials 4794 | -8/Materials | Build established: Bothacker-Tank 5326 | -8/Materials | Discovered exit to Factory (range 8) 5362 | -8/Materials | Identified exit to Garrison 5362 | -8/Materials | Entered Garrison 5380 | -8/Garrison | Triggered checkpoint 5427 | -8/Garrison | Expanded RIF knowledge: Zone Cloak 5698 | -8/Garrison | Triggered checkpoint 5736 | -8/Garrison | Garrison Relay disabled 5896 | -8/Garrison | Triggered checkpoint 6129 | -8/Garrison | Core integrity fell below 50% 6227 | -8/Garrison | Rescued a captive Derelict 6234 | -8/Garrison | Rescued a captive Derelict 6306 | -8/Garrison | Discovered exit to Factory (range 5) 6405 | -8/Garrison | Build established: Bothacker-Skirmisher 6441 | -8/Garrison | Learned Factory security intel 6458 | -8/Garrison | Garrison Relay disabled 6537 | -8/Garrison | Entered Factory 6537 | -7/Factory | Evolved 2 slots: Propulsion x2 6829 | -7/Factory | Identified exit to Garrison 6829 | -7/Factory | Entered Garrison 6888 | -7/Garrison | Triggered checkpoint 6951 | -7/Garrison | Destroyed 7 combat bots 6952 | -7/Garrison | Lost 5 parts (1p1n1u2w) 6973 | -7/Garrison | Triggered checkpoint 7031 | -7/Garrison | Expanded RIF knowledge: Program Shield 7055 | -7/Garrison | Garrison Relay disabled 7210 | -7/Garrison | Discovered new exit (range 14) 7296 | -7/Garrison | Hacking Suite fried by hacking feedback 7345 | -7/Garrison | Entered Factory 7701 | -7/Factory | Repaired Arm. Treads 7741 | -7/Factory | Repaired Adv. Treads 7959 | -7/Factory | Garrison activated, responded to threat 8128 | -7/Factory | Identified exit to Garrison 8128 | -7/Factory | Entered Garrison 8153 | -7/Garrison | Expanded RIF knowledge: Command Fork 8400 | -7/Garrison | Triggered checkpoint 8453 | -7/Garrison | Build established: Botlord-Skirmisher 8475 | -7/Garrison | Triggered checkpoint 8529 | -7/Garrison | Destroyed 7 combat bots 8536 | -7/Garrison | Lost 4 parts (3n1w) 8630 | -7/Garrison | Triggered checkpoint 8710 | -7/Garrison | Garrison Relay disabled 8881 | -7/Garrison | Lost 3 parts (1p1u1w) 8935 | -7/Garrison | Discovered new exit (range 7) 8950 | -7/Garrison | Entered Factory 8950 | -6/Factory | Evolved 2 slots: Utility x2 9344 | -6/Factory | Repaired Arm. Treads 9445 | -6/Factory | Discovered new exit (range 16) 10108 | -6/Factory | Build established: Botlord-Mutant 10999 | -6/Factory | Discovered new exit (range 8) 11480 | -6/Factory | Discovered new exit (range 8) 11628 | -6/Factory | Spotted B-75 Beast 11655 | -6/Factory | Destroyed B-75 Beast 11848 | -6/Factory | Fabricated Med. Treads (x2) 11920 | -6/Factory | Build established: Botlord-Skirmisher 12159 | -6/Factory | Fabricated Imp. Medium Treads? 13076 | -6/Factory | Sucked down chute 13076 | -6/Factory | Entered Waste 13077 | -6/Waste | Met a frightened Derelict 13091 | -6/Waste | EMP discharged 13095 | -6/Waste | Spotted C-40 Crusher 13107 | -6/Waste | Spotted C-40 Crusher 13110 | -6/Waste | Destroyed C-40 Crusher 13113 | -6/Waste | Spotted C-40 Crusher 13122 | -6/Waste | Destroyed C-40 Crusher 13150 | -6/Waste | Spotted C-40 Crusher 13164 | -6/Waste | Spotted C-40 Crusher 13172 | -6/Waste | Crushed by Compactor (1 part destroyed, 1 dropped) 13175 | -6/Waste | Crushed by Compactor (1 part destroyed, 2 dropped) 13178 | -6/Waste | Destroyed C-40 Crusher 13178 | -6/Waste | Crushed by Compactor (1 part destroyed, 1 dropped) 13181 | -6/Waste | Crushed by Compactor (1 part destroyed, 2 dropped) 13181 | -6/Waste | Self-destructed Last Messages --------------- 13175_ Hvy. Plasma Cannon crushed. 13175_ Arm. Treads crushed. 13175_ Imp. Medium Treads crushed. 13175_ Critical hit (Destroy). 13178_ System corrupted: Adv. Assault Cannon jammed. 13178_ C-40 Crusher destroyed. 13178_ Huge Storage Unit crushed. 13178_ Imp. Medium Treads crushed. 13181_ The unstable cave ceiling collapses. 13181_ ALERT: Foreign system detected. Charging EMP. 13181_ Med. Treads crushed. 13181_ Imp. Deuterium Engine crushed. 13181_ Lgt. Angular Momentum Engine crushed. 13181_ Relay Coupler [Sentry] crushed. 13181_ Med. Treads crushed. 13181_ Adv. Assault Cannon crushed. 13181_ Lrn. Missile Launcher crushed. 13181_ Imp. Deuterium Engine destroyed. Map ----- +----------------------------------------------------+ | ?????????????????????????????????????????????????? | | ?????????????????????????????????????????????????? | | ?????????????????????????????????????????????????? | | ?????????????????????????????????????????????????? | | ?????????????????????????????????????????????????? | | ?????????????????????????????????????????????????? | | ?????????????????????????????????????????????????? | | ?????????????????????????????????????????????????? | | ?????????????????????????????????????????????????? | | ?????????????????????????????????????????????????? | | ?????????????????????????????????????????????????? | | ????????????????? ????????????????????????????? | | ????????????????# #???????????????????????????? | | ????????????????# #???????????????????????????? | | ??????????????### ####????????????????????????? | | ??????????????# ????????????????????????? | | ??????????????# ?????????#???????????????? | | ??????????????? ????????? #???????????????? | | ???????????????? ! ????????? #???????????????? | | ????????????????# #???????? #???????????????? | | ??############??# #??????? ##??????????????? | | ??# #??# #?##?### ;#??????????????? | | ??# #??# ### # #???????????????? | | ??# #### # !!!!# #####???????????? | | ??# !!|!! ????????? | | ??# !=@=!! ????????? | | ??# CC %*]CC ????????? | | ??# CC ![=CC ????????? | | ??# #### ## = #######?????????? | | ??# #??# ### #???????????????? | | ??# #??# #?# ## #???????????????? | | ??############??# #?#####? #???????????????? | | ????????????????# #???????? #???????????????? | | ???????????????? ????????? ??????????????? | | ??????????????? ???????? ?????????????? | | ??????????????# ???????? ????????????? | | ??????????????# ???????? ????????????? | | ??????????????### #####????????#??????????????? | | ????????????????# #???????????????????????????? | | ????????????????# #???????????????????????????? | | ????????????????# #???????????????????????????? | | ????????????????# #???????????????????????????? | | ?????????????????####????????????????????????????? | | ?????????????????????????????????????????????????? | | ?????????????????????????????????????????????????? | | ?????????????????????????????????????????????????? | | ?????????????????????????????????????????????????? | | ?????????????????????????????????????????????????? | | ?????????????????????????????????????????????????? | | ?????????????????????????????????????????????????? | +----------------------------------------------------+ Best States ------------- Heat Dissipation 53 Coolant Potential 65 Energy Generation 19 Energy Capacity 315 Matter Stores 300 Matter Capacity 300 Sight Range 22 Terrain Scan Density 10 Base Temperature (-) 100 Armor Coverage 600 Propulsion Shielding 66 Evasion (%) 42 Recoil Reduction 9 Offensive Hacking 10 Relay Coupler Types 2 Relay Coupler Value 38 Item Schematics ----------------- Huge Storage Unit | -8/Materials | Scanalyzed Med. Treads | -6/Factory | Scanalyzed Imp. Medium Treads | -6/Factory | Scanalyzed Robot Schematics ------------------ None Fabricated ------------ Med. Treads | x2 | -6/Factory Imp. Medium Treads | x2 | -6/Factory Alien Tech Used ----------------- None Achievements -------------- Dramatic Entrance Use The Force Challenges ------------ None Game ------ Seed GrenadeThermicFlail Manual? 0 Play Time 03:10:46 Cumulative 58.2 hours Start 2024.04.28 @ 10:58:06 End 2024.04.28 @ 16:53:42 Sessions 1 Manual Loads 0 Difficulty Rogue Special Mode None Game No. 33 Rogue 33 Adventurer 0 Explorer 0 Win Type - Total 1 Types 1/0/0/0/0/0/0/0/0 Lore% 26 Gallery% 40 Achievement% 33 Wizard Run 0 Options --------- Layout 2 ASCII 0 Keyboard 0 Movement Numpad Keybinds 0 Fullscreen 2 Font 24/Smallcaps Map View 50x44 Zoom Use 0% Tactical HUD 1 Map Filters NONE Filters NONE Steam 1 RUN: 93cef8da-3331-4023-b815-74ae4cc59deb